fUST/lending_fUST_20250724
["ID","MTS","AMOUNT","RATE_DAILY","PERIOD"]
[374504598,1753329046446,-460.0,0.00019726,2]
[374504600,1753329046456,-460.0,0.00019726,2]
[374504602,1753329046465,-447.04756775,0.00019726,2]
[374504604,1753329046475,-462.17,0.00019726,2]
[374504606,1753329046484,-460.0,0.00019726,2]
[374504608,1753329046494,-711.85,0.00019726,2]
[374504610,1753329046503,-476.29411871,0.00019726,2]
[374504612,1753329046513,-467.05,0.00019726,2]
[374504614,1753329046522,-460.0,0.00019726,2]
[374504616,1753329046532,-460.0,0.00019726,2]
[374504618,1753329046542,-460.0,0.00019726,2]
[374504620,1753329046551,-460.0,0.00019726,2]
[374504622,1753329046561,-460.0,0.00019726,2]
[374504624,1753329046570,-460.0,0.00019726,2]
[374504625,1753329046579,-373.49665281,0.00019726,2]
[374504627,1753329046587,-460.0,0.00019726,2]
[374504629,1753329046597,-2724.56,0.00019726,2]
[374504631,1753329046607,-460.0,0.00019726,2]
[374504633,1753329046616,-460.0,0.00019726,2]
[374504635,1753329046630,-460.0,0.00019726,2]
[374504637,1753329046640,-798.43,0.00019726,2]
[374504639,1753329046649,-460.0,0.00019726,2]
[374504641,1753329046659,-1526.67,0.00019726,2]
[374504642,1753329046669,-460.0,0.00019726,2]
[374504644,1753329046683,-156.85791479,0.00019726,2]
[374504646,1753329046692,-460.0,0.00019726,2]
[374504648,1753329046701,-905.6125269,0.00019726,2]
[374504661,1753329046819,-933.24475225,0.00019726,2]
[374504664,1753329046831,-434.05328037,0.00019726,2]
[374504666,1753329046843,-416.65490336,0.00019726,2]
[374504695,1753329047135,-460.0,0.00019178,2]
[374504697,1753329047144,-1837.95453712,0.00019726,2]
[374504699,1753329047154,-460.0,0.00019726,2]
[374504701,1753329047163,-2086.31,0.00019726,2]
[374504703,1753329047172,-779.11,0.00019726,2]
[374504705,1753329047181,-460.0,0.00019726,2]
[374504707,1753329047191,-460.0,0.00019726,2]
[374504709,1753329047201,-460.0,0.00019726,2]
[374504711,1753329047210,-460.0,0.00019726,2]
[374504713,1753329047219,-460.0,0.00019726,2]
[374504714,1753329047228,-151.0,0.00019726,2]
[374504716,1753329047238,-460.0,0.00019726,2]
[374504718,1753329047247,-460.0,0.00019726,2]
[374504720,1753329047256,-1360.38,0.00019726,2]
[374504722,1753329047266,-460.0,0.00019726,2]
[374504724,1753329047275,-460.0,0.00019726,2]
[374504726,1753329047290,-460.0,0.00019726,2]
[374504728,1753329047299,-460.0,0.00019726,2]
[374504730,1753329047308,-894.56,0.00019726,2]
[374504732,1753329047318,-460.0,0.00019726,2]
[374504734,1753329047330,-589.81,0.00019726,2]
[374504736,1753329047339,-460.0,0.00019726,2]
[374504748,1753329047441,-460.0,0.00019726,2]
[374504750,1753329047452,-488.02,0.00019726,2]
[374504752,1753329047461,-151.0,0.00019726,2]
[374504754,1753329047471,-460.0,0.00019726,2]
[374504756,1753329047481,-460.0,0.00019726,2]
[374504758,1753329047491,-605.76248798,0.00019726,2]
[374504760,1753329047500,-460.0,0.00019726,2]
[374504762,1753329047512,-465.25,0.00019726,2]
[374504764,1753329047521,-1392.92,0.00019726,2]
[374504766,1753329047533,-5242.19,0.00019726,2]
[374504768,1753329047542,-579.57,0.00019726,2]
[374504770,1753329047552,-460.0,0.00019726,2]
[374504772,1753329047562,-460.0,0.00019726,2]
[374504774,1753329047571,-1989.65,0.00019726,2]
[374504776,1753329047581,-553.41,0.00019726,2]
[374504778,1753329047590,-1562.25,0.00019726,2]
[374504780,1753329047599,-151.0,0.00019726,2]
[374504781,1753329047609,-230.13542408,0.00019726,2]
[374504783,1753329047619,-1538.53,0.00019726,2]
[374504785,1753329047628,-460.0,0.00019726,2]
[374504787,1753329047638,-151.0,0.00019726,2]
[374504789,1753329047647,-460.0,0.00019726,2]
[374504791,1753329047657,-828.63,0.00019726,2]
[374504793,1753329047666,-460.0,0.00019726,2]
[374504795,1753329047676,-460.0,0.00019726,2]
[374504797,1753329047685,-460.0,0.00019726,2]
[374504799,1753329047695,-460.0,0.00019726,2]
[374504801,1753329047704,-460.0,0.00019726,2]
[374504803,1753329047713,-460.0,0.00019726,2]
[374504805,1753329047723,-460.0,0.00019726,2]
[374504807,1753329047732,-460.0,0.00019726,2]
[374504809,1753329047742,-460.0,0.00019726,2]
[374504811,1753329047751,-460.0,0.00019726,2]
[374504813,1753329047761,-688.32,0.00019726,2]
[374504815,1753329047770,-460.0,0.00019726,2]
[374504817,1753329047780,-460.0,0.00019726,2]
[374504819,1753329047789,-1505.13,0.00019726,2]
[374504821,1753329047799,-460.0,0.00019726,2]
[374504822,1753329047808,-460.0,0.00019726,2]
[374504824,1753329047818,-460.0,0.00019726,2]
[374504826,1753329047826,-460.0,0.00019726,2]
[374504828,1753329047835,-460.0,0.00019726,2]
[374504830,1753329047846,-1080.86,0.00019726,2]
[374504832,1753329047855,-460.0,0.00019726,2]
[374504834,1753329047864,-465.92403038,0.00019726,2]
[374504836,1753329047874,-650.6,0.00019726,2]
[374504838,1753329047884,-460.0,0.00019726,2]
[374504840,1753329047893,-460.0,0.00019726,2]
[374504842,1753329047903,-685.17,0.00019726,2]
[374504844,1753329047911,-460.0,0.00019726,2]
[374504846,1753329047920,-461.39124406,0.00019726,2]
[374504848,1753329047930,-460.0,0.00019726,2]
[374504850,1753329047939,-460.0,0.00019726,2]
[374504852,1753329047948,-500.0,0.00019726,2]
[374504853,1753329047957,-729.65819668,0.00019797,2]
[374504855,1753329047967,-151.0,0.00019797,2]
[374504857,1753329047976,-151.0,0.00019854,2]
[374504859,1753329047986,-151.0,0.00019854,2]
[374504861,1753329047996,-243.366724,0.00019854,2]
[374504863,1753329048005,-151.0,0.00019854,2]
[374504865,1753329048015,-151.0,0.00019854,2]
[374504867,1753329048026,-238.238,0.00019854,2]
[374504869,1753329048036,-151.181492,0.00019854,2]
[374504871,1753329048046,-151.0,0.00019854,2]
[374504873,1753329048055,-151.0,0.00019854,2]
[374504875,1753329048065,-151.0,0.00019854,2]
[374504877,1753329048074,-151.0,0.00019854,2]
[374504879,1753329048084,-25000.0,0.00019854,2]
[374504881,1753329048093,-4034.0,0.00019879,2]
[374504883,1753329048103,-4034.0,0.00019886,2]
[374504885,1753329048112,-1431.0,0.00019895,2]
[374504887,1753329048121,-783.808,0.00019904,2]
[374504888,1753329048131,-4034.0,0.00019932,2]
[374504889,1753329048141,-777.20863463,0.00019965,2]
[374504890,1753329048150,-500.0,0.00019973,2]
[374504891,1753329048160,-505.29912107,0.00019973,2]
[374504892,1753329048169,-223.23880831,0.00019973,2]
[374504893,1753329048178,-501.57043918,0.00019973,2]
[374504894,1753329048187,-500.0,0.00019988,2]
[374504895,1753329048197,-100000.0,0.0001999,2]
[374504896,1753329048206,-30676.34952064,0.0002,2]
[374504897,1753329048216,-151.0,0.0002,2]
[374504898,1753329048226,-151.0,0.0002,2]
[374504899,1753329048235,-151.0,0.0002,2]
[374504900,1753329048245,-151.0,0.0002,2]
[374504901,1753329048255,-151.0,0.0002,2]
[374504902,1753329048265,-151.0,0.0002,2]
[374504903,1753329048274,-151.0,0.0002,2]
[374504904,1753329048286,-151.0,0.0002,2]
[374504905,1753329048295,-151.0,0.0002,2]
[374504906,1753329048304,-151.0,0.0002,2]
[374504907,1753329048314,-908.64373197,0.0002,2]
[374504908,1753329048324,-151.0,0.0002,2]
[374504909,1753329048333,-151.0,0.0002,2]
[374504910,1753329048342,-151.0,0.0002,2]
[374504911,1753329048351,-263.917434,0.0002,2]
[374504912,1753329048363,-151.0,0.0002,2]
[374504913,1753329048373,-263.917434,0.0002,2]
[374504914,1753329048383,-151.0,0.0002,2]
[374504915,1753329048393,-151.0,0.0002,2]
[374504916,1753329048402,-151.0,0.0002,2]
[374504917,1753329048412,-151.0,0.0002,2]
[374504918,1753329048422,-151.0,0.0002,2]
[374504919,1753329048432,-460.0,0.0002,2]
[374504920,1753329048442,-460.0,0.0002,2]
[374504921,1753329048452,-151.0,0.0002,2]
[374504922,1753329048461,-151.0,0.0002,2]
[374504923,1753329048470,-151.0,0.0002,2]
[374504924,1753329048479,-151.0,0.0002,2]
[374504925,1753329048489,-1231.889675,0.0002,2]
[374504926,1753329048499,-1231.889675,0.0002,2]
[374504928,1753329048508,-430.401487,0.0002,2]
[374504930,1753329048518,-430.401487,0.0002,2]
[374504932,1753329048527,-278.77781059,0.0002,2]
[374504934,1753329048539,-182.602998,0.0002,2]
[374504936,1753329048549,-182.602998,0.0002,2]
[374504938,1753329048559,-460.0,0.0002,2]
[374504940,1753329048569,-152.251544,0.0002,2]
[374504942,1753329048579,-152.251544,0.0002,2]
[374504944,1753329048589,-460.0,0.0002,2]
[374504946,1753329048599,-465.18161813,0.0002,2]
[374504948,1753329048608,-460.0,0.0002,2]
[374504950,1753329048617,-460.0,0.0002,2]
[374504951,1753329048627,-161.76201462,0.0002,2]
[374504953,1753329048636,-503.361974,0.0002,2]
[374504955,1753329048646,-503.361974,0.0002,2]
[374504957,1753329048656,-460.0,0.0002,2]
[374504959,1753329048666,-460.0,0.0002,2]
[374504961,1753329048675,-500.0,0.0002,2]
[374504963,1753329048685,-320.58273209,0.0002,2]
[374504965,1753329048694,-204.176041,0.0002,2]
[374504967,1753329048704,-204.176041,0.0002,2]
[374504969,1753329048714,-151.0,0.0002,2]
[374504971,1753329048724,-151.48369976,0.0002,2]
[374504973,1753329048734,-460.0,0.0002,2]
[374504975,1753329048744,-460.0,0.0002,2]
[374504977,1753329048753,-460.0,0.0002,2]
[374504979,1753329048763,-460.0,0.0002,2]
[374504981,1753329048773,-460.0,0.0002,2]
[374504983,1753329048783,-524.783828,0.0002,2]
[374504985,1753329048792,-726.76,0.0002,2]
[374504987,1753329048802,-460.0,0.0002,2]
[374504989,1753329048811,-460.0,0.0002,2]
[374504992,1753329048821,-460.0,0.0002,2]
[374504993,1753329048830,-460.0,0.0002,2]
[374504995,1753329048840,-460.0,0.0002,2]
[374504997,1753329048850,-460.0,0.0002,2]
[374504999,1753329048860,-202.58183,0.0002,2]
[374505001,1753329048870,-460.0,0.0002,2]
[374505003,1753329048879,-347.385135,0.0002,2]
[374505005,1753329048889,-202.58183,0.0002,2]
[374505007,1753329048899,-347.385135,0.0002,2]
[374505009,1753329048908,-460.0,0.0002,2]
[374505011,1753329048917,-460.0,0.0002,2]
[374505013,1753329048926,-223.544794,0.0002,2]
[374505015,1753329048937,-460.0,0.0002,2]
[374505017,1753329048946,-223.544794,0.0002,2]
[374505019,1753329048956,-156.090994,0.0002,2]
[374505021,1753329048966,-460.0,0.0002,2]
[374505023,1753329048975,-151.0,0.0002,2]
[374505025,1753329048985,-156.090994,0.0002,2]
[374505028,1753329048995,-151.0,0.0002,2]
[374505030,1753329049004,-166.36565,0.0002,2]
[374505032,1753329049014,-151.0,0.0002,2]
[374505034,1753329049023,-460.0,0.0002,2]
[374505035,1753329049035,-151.0,0.0002,2]
[374505038,1753329049045,-151.0,0.0002,2]
[374505040,1753329049055,-151.0,0.0002,2]
[374505042,1753329049065,-460.0,0.0002,2]
[374505044,1753329049076,-460.0,0.0002,2]
[374505045,1753329049086,-693.0,0.0002,2]
[374505047,1753329049095,-460.0,0.0002,2]
[374505049,1753329049105,-151.0,0.0002,2]
[374505052,1753329049115,-151.05000522,0.0002,2]
[374505053,1753329049124,-248.21941893,0.0002,2]
[374505055,1753329049134,-151.0,0.0002,2]
[374505057,1753329049144,-179.3227898,0.0002,2]
[374505059,1753329049153,-151.0,0.0002,2]
[374505061,1753329049163,-460.0,0.0002,2]
[374505064,1753329049172,-151.0,0.0002,2]
[374505065,1753329049182,-460.0,0.0002,2]
[374505067,1753329049191,-460.0,0.0002,2]
[374505069,1753329049201,-3129.69,0.0002,2]
[374505072,1753329049211,-779.16,0.0002,2]
[374505073,1753329049220,-460.0,0.0002,2]
[374505075,1753329049230,-460.0,0.0002,2]
[374505078,1753329049240,-189.800988,0.0002,2]
[374505079,1753329049250,-462.17,0.0002,2]
[374505082,1753329049259,-711.85,0.0002,2]
[374505084,1753329049270,-189.800988,0.0002,2]
[374505085,1753329049284,-467.05,0.0002,2]
[374505087,1753329049293,-460.0,0.0002,2]
[374505098,1753329049388,-460.0,0.0002,2]
[374505100,1753329049399,-460.0,0.0002,2]
[374505102,1753329049409,-407.11710652,0.0002,2]
[374505104,1753329049419,-460.0,0.0002,2]
[374505106,1753329049429,-460.0,0.0002,2]
[374505108,1753329049439,-151.0,0.0002,2]
[374505110,1753329049448,-460.0,0.0002,2]
[374505112,1753329049458,-2724.56,0.0002,2]
[374505114,1753329049468,-460.0,0.0002,2]
[374505116,1753329049476,-460.0,0.0002,2]
[374505118,1753329049486,-460.0,0.0002,2]
[374505120,1753329049496,-798.43,0.0002,2]
[374505122,1753329049505,-460.0,0.0002,2]
[374505124,1753329049514,-1526.67,0.0002,2]
[374505126,1753329049524,-460.0,0.0002,2]
[374505128,1753329049535,-460.0,0.0002,2]
[374505130,1753329049544,-4527.52,0.0002,2]
[374505132,1753329049554,-460.0,0.0002,2]
[374505134,1753329049563,-2086.31,0.0002,2]
[374505136,1753329049574,-779.11,0.0002,2]
[374505138,1753329049584,-460.0,0.0002,2]
[374505140,1753329049593,-460.0,0.0002,2]
[374505142,1753329049602,-460.0,0.0002,2]
[374505144,1753329049612,-151.0,0.0002,2]
[374505146,1753329049621,-460.0,0.0002,2]
[374505148,1753329049630,-460.0,0.0002,2]
[374505150,1753329049640,-500.0,0.0002,2]
[374505152,1753329049650,-151.51745849,0.0002,2]
[374505154,1753329049659,-151.0,0.0002,2]
[374505156,1753329049668,-460.0,0.0002,2]
[374505158,1753329049678,-460.0,0.0002,2]
[374505160,1753329049687,-1360.38,0.0002,2]
[374505162,1753329049698,-151.76531155,0.0002,2]
[374505164,1753329049707,-460.0,0.0002,2]
[374505166,1753329049716,-151.0,0.0002,2]
[374505168,1753329049726,-460.0,0.0002,2]
[374505170,1753329049735,-151.0,0.0002,2]
[374505172,1753329049745,-460.0,0.0002,2]
[374505174,1753329049755,-460.0,0.0002,2]
[374505176,1753329049765,-894.56,0.0002,2]
[374505178,1753329049774,-460.0,0.0002,2]
[374505180,1753329049785,-589.81,0.0002,2]
[374505182,1753329049794,-460.0,0.0002,2]
[374505184,1753329049803,-460.0,0.0002,2]
[374505186,1753329049812,-488.02,0.0002,2]
[374505188,1753329049822,-460.0,0.0002,2]
[374505190,1753329049831,-151.0,0.0002,2]
[374505192,1753329049840,-460.0,0.0002,2]
[374505194,1753329049850,-460.0,0.0002,2]
[374505196,1753329049859,-465.25,0.0002,2]
[374505198,1753329049868,-1392.92,0.0002,2]
[374505200,1753329049878,-151.0,0.0002,2]
[374505202,1753329049887,-5242.19,0.0002,2]
[374505204,1753329049897,-579.57,0.0002,2]
[374505206,1753329049906,-151.0,0.0002,2]
[374505208,1753329049915,-460.0,0.0002,2]
[374505210,1753329049925,-460.0,0.0002,2]
[374505212,1753329049934,-1989.65,0.0002,2]
[374505214,1753329049943,-553.41,0.0002,2]
[374505216,1753329049953,-1562.25,0.0002,2]
[374505218,1753329049962,-151.0,0.0002,2]
[374505220,1753329049972,-1538.53,0.0002,2]
[374505222,1753329049981,-460.0,0.0002,2]
[374505224,1753329049990,-151.0,0.0002,2]
[374505226,1753329050000,-460.0,0.0002,2]
[374505228,1753329050010,-828.63,0.0002,2]
[374505230,1753329050019,-460.0,0.0002,2]
[374505232,1753329050030,-460.0,0.0002,2]
[374505234,1753329050039,-460.0,0.0002,2]
[374505236,1753329050048,-460.0,0.0002,2]
[374505238,1753329050058,-460.0,0.0002,2]
[374505240,1753329050067,-460.0,0.0002,2]
[374505242,1753329050077,-460.0,0.0002,2]
[374505244,1753329050086,-460.0,0.0002,2]
[374505246,1753329050096,-688.32,0.0002,2]
[374505249,1753329050105,-460.0,0.0002,2]
[374505251,1753329050115,-460.0,0.0002,2]
[374505252,1753329050124,-460.0,0.0002,2]
[374505254,1753329050134,-460.0,0.0002,2]
[374505256,1753329050145,-1505.13,0.0002,2]
[374505258,1753329050154,-467.11221141,0.0002,2]
[374505260,1753329050164,-460.0,0.0002,2]
[374505262,1753329050173,-1080.86,0.0002,2]
[374505264,1753329050184,-460.0,0.0002,2]
[374505267,1753329050193,-460.0,0.0002,2]
[374505269,1753329050204,-650.6,0.0002,2]
[374505271,1753329050214,-460.0,0.0002,2]
[374505272,1753329050224,-685.17,0.0002,2]
[374505275,1753329050234,-460.0,0.0002,2]
[374505276,1753329050243,-151.0,0.0002,2]
[374505278,1753329050252,-950.0,0.0002,2]
[374505280,1753329050262,-460.0,0.0002,2]
[374505281,1753329050271,-460.0,0.0002,2]
[374505283,1753329050283,-150.0,0.00020019,2]
[374505285,1753329050293,-4034.0,0.0002004,2]
[374505287,1753329050302,-445.08,0.00020059,2]
[374505289,1753329050311,-1431.0,0.00020066,2]
[374505291,1753329050320,-153.0,0.00020082,2]
[374505292,1753329050331,-153.0,0.00020082,2]
[374505294,1753329050341,-153.0,0.00020082,2]
[374505296,1753329050351,-153.6828277,0.00020082,2]
[374505299,1753329050363,-1431.0,0.00020121,2]
[374505300,1753329050374,-1431.0,0.00020134,2]
[374505302,1753329050384,-729.65819668,0.00020156,2]
[374505304,1753329050394,-244.51048,0.00020187,2]
[374505306,1753329050404,-896.0,0.00020226,2]
[374505308,1753329050413,-896.0,0.00020238,2]
[374505310,1753329050423,-151.0,0.00020269,2]
[374505312,1753329050432,-151.0,0.00020273,2]
[374505314,1753329050441,-151.0,0.00020273,2]
[374505316,1753329050450,-151.0,0.00020273,2]
[374505318,1753329050460,-266.16286,0.00020273,2]
[374505320,1753329050469,-151.0,0.00020273,2]
[374505322,1753329050479,-151.0,0.00020273,2]
[374505324,1753329050488,-151.0,0.00020273,2]
[374505326,1753329050497,-151.0,0.00020273,2]
[374505328,1753329050507,-151.0,0.00020273,2]
[374505330,1753329050516,-151.0,0.00020273,2]
[374505332,1753329050525,-151.0,0.00020273,2]
[374505334,1753329050537,-242.241813,0.00020273,2]
[374505336,1753329050547,-151.0,0.00020273,2]
[374505338,1753329050556,-151.0,0.00020273,2]
[374505340,1753329050565,-263.917434,0.00020273,2]
[374505342,1753329050575,-151.0,0.00020273,2]
[374505344,1753329050584,-263.917434,0.00020273,2]
[374505346,1753329050594,-151.0,0.00020273,2]
[374505348,1753329050603,-151.0,0.00020273,2]
[374505350,1753329050612,-151.0,0.00020273,2]
[374505352,1753329050622,-151.0,0.00020273,2]
[374505354,1753329050632,-460.0,0.00020273,2]
[374505356,1753329050642,-151.0,0.00020273,2]
[374505358,1753329050651,-151.0,0.00020273,2]
[374505360,1753329050661,-1231.889675,0.00020273,2]
[374505362,1753329050670,-1231.889675,0.00020273,2]
[374505364,1753329050679,-430.401487,0.00020273,2]
[374505366,1753329050688,-430.401487,0.00020273,2]
[374505368,1753329050699,-182.602998,0.00020273,2]
[374505369,1753329050710,-182.602998,0.00020273,2]
[374505371,1753329050719,-460.0,0.00020273,2]
[374505373,1753329050730,-152.251544,0.00020273,2]
[374505375,1753329050740,-152.251544,0.00020273,2]
[374505377,1753329050749,-460.0,0.00020273,2]
[374505379,1753329050758,-460.0,0.00020273,2]
[374505381,1753329050767,-460.0,0.00020273,2]
[374505383,1753329050778,-503.361974,0.00020273,2]
[374505385,1753329050787,-503.361974,0.00020273,2]
[374505387,1753329050795,-460.0,0.00020273,2]
[374505388,1753329050804,-460.0,0.00020273,2]
[374505390,1753329050815,-151.0,0.00020273,2]
[374505392,1753329050824,-204.176041,0.00020273,2]
[374505394,1753329050833,-204.176041,0.00020273,2]
[374505396,1753329050842,-151.0,0.00020273,2]
[374505398,1753329050851,-151.0,0.00020273,2]
[374505400,1753329050860,-169.807849,0.00020273,2]
[374505402,1753329050871,-169.807849,0.00020273,2]
[374505404,1753329050880,-375.92582367,0.00020273,2]
[374505406,1753329050889,-460.0,0.00020273,2]
[374505408,1753329050898,-460.0,0.00020273,2]
[374505410,1753329050908,-460.0,0.00020273,2]
[374505412,1753329050918,-460.0,0.00020273,2]
[374505414,1753329050927,-161.375434,0.00020273,2]
[374505416,1753329050936,-161.375434,0.00020273,2]
[374505418,1753329050945,-726.76,0.00020273,2]
[374505420,1753329050954,-460.0,0.00020273,2]
[374505422,1753329050963,-460.0,0.00020273,2]
[374505424,1753329050973,-460.0,0.00020273,2]
[374505425,1753329050982,-460.0,0.00020273,2]
[374505427,1753329050991,-460.0,0.00020273,2]
[374505429,1753329051000,-460.0,0.00020273,2]
[374505431,1753329051010,-202.58183,0.00020273,2]
[374505433,1753329051020,-569.21,0.00020273,2]
[374505435,1753329051029,-202.58183,0.00020273,2]
[374505437,1753329051038,-460.0,0.00020273,2]
[374505439,1753329051047,-465.3531797,0.00020273,2]
[374505441,1753329051057,-190.88961,0.00020273,2]
[374505443,1753329051066,-190.88961,0.00020273,2]
[374505445,1753329051075,-151.942073,0.00020273,2]
[374505455,1753329051171,-223.544794,0.00020273,2]
[374505457,1753329051181,-460.0,0.00020273,2]
[374505459,1753329051190,-223.544794,0.00020273,2]
[374505461,1753329051200,-156.090994,0.00020273,2]
[374505463,1753329051209,-460.0,0.00020273,2]
[374505465,1753329051219,-151.0,0.00020273,2]
[374505466,1753329051228,-156.090994,0.00020273,2]
[374505468,1753329051238,-151.0,0.00020273,2]
[374505470,1753329051247,-460.0,0.00020273,2]
[374505472,1753329051257,-460.0,0.00020273,2]
[374505474,1753329051266,-460.0,0.00020273,2]
[374505476,1753329051276,-467.36795506,0.00020273,2]
[374505478,1753329051290,-478.63768324,0.00020273,2]
[374505480,1753329051300,-460.0,0.00020273,2]
[374505482,1753329051309,-3129.69,0.00020273,2]
[374505484,1753329051318,-779.16,0.00020273,2]
[374505486,1753329051328,-460.0,0.00020273,2]
[374505488,1753329051338,-189.800988,0.00020273,2]
[374505490,1753329051347,-462.17,0.00020273,2]
[374505492,1753329051357,-711.85,0.00020273,2]
[374505494,1753329051369,-189.800988,0.00020273,2]
[374505496,1753329051379,-467.05,0.00020273,2]
[374505498,1753329051389,-460.0,0.00020273,2]
[374505500,1753329051399,-460.0,0.00020273,2]
[374505502,1753329051409,-460.0,0.00020273,2]
[374505504,1753329051419,-460.0,0.00020273,2]
[374505506,1753329051429,-460.0,0.00020273,2]
[374505508,1753329051439,-460.0,0.00020273,2]
[374505509,1753329051449,-2724.56,0.00020273,2]
[374505511,1753329051459,-468.46542472,0.00020273,2]
[374505513,1753329051468,-460.0,0.00020273,2]
[374505515,1753329051477,-460.0,0.00020273,2]
[374505517,1753329051487,-798.43,0.00020273,2]
[374505519,1753329051496,-473.41425427,0.00020273,2]
[374505521,1753329051505,-1526.67,0.00020273,2]
[374505523,1753329051514,-460.0,0.00020273,2]
[374505525,1753329051524,-309.04899857,0.00020273,2]
[374505527,1753329051533,-4527.52,0.00020273,2]
[374505529,1753329051543,-460.0,0.00020273,2]
[374505531,1753329051552,-2086.31,0.00020273,2]
[374505533,1753329051562,-779.11,0.00020273,2]
[374505535,1753329051571,-460.0,0.00020273,2]
[374505537,1753329051581,-460.0,0.00020273,2]
[374505539,1753329051591,-467.63122922,0.00020273,2]
[374505541,1753329051601,-460.0,0.00020273,2]
[374505542,1753329051611,-239.65973485,0.00020273,2]
[374505545,1753329051622,-460.0,0.00020273,2]
[374505546,1753329051631,-151.0,0.00020273,2]
[374505548,1753329051641,-466.56983361,0.00020273,2]
[374505550,1753329051651,-1360.38,0.00020273,2]
[374505552,1753329051660,-460.0,0.00020273,2]
[374505554,1753329051669,-460.0,0.00020273,2]
[374505556,1753329051679,-460.0,0.00020273,2]
[374505558,1753329051688,-460.0,0.00020273,2]
[374505560,1753329051697,-894.56,0.00020273,2]
[374505562,1753329051707,-460.0,0.00020273,2]
[374505564,1753329051716,-589.81,0.00020273,2]
[374505566,1753329051726,-460.0,0.00020273,2]
[374505568,1753329051735,-460.0,0.00020273,2]
[374505570,1753329051745,-488.02,0.00020273,2]
[374505572,1753329051754,-460.0,0.00020273,2]
[374505574,1753329051764,-151.0,0.00020273,2]
[374505576,1753329051773,-460.0,0.00020273,2]
[374505578,1753329051784,-460.0,0.00020273,2]
[374505580,1753329051794,-465.25,0.00020273,2]
[374505582,1753329051803,-1392.92,0.00020273,2]
[374505584,1753329051813,-5242.19,0.00020273,2]
[374505585,1753329051823,-579.57,0.00020273,2]
[374505587,1753329051835,-460.0,0.00020273,2]
[374505590,1753329051845,-460.0,0.00020273,2]
[374505592,1753329051857,-553.41,0.00020273,2]
[374505593,1753329051867,-1989.65,0.00020273,2]
[374505595,1753329051876,-1562.25,0.00020273,2]
[374505597,1753329051887,-151.0,0.00020273,2]
[374505599,1753329051898,-1538.53,0.00020273,2]
[374505601,1753329051907,-460.0,0.00020273,2]
[374505603,1753329051916,-151.0,0.00020273,2]
[374505605,1753329051926,-460.0,0.00020273,2]
[374505607,1753329051935,-825.44422629,0.00020273,2]